bitfinex/quotes_ETHUSD_20220218
["timestamp","ask_amount","ask_price","bid_price","bid_amount"]
[1645152709462,1.48914432,2906.6,2906.5,0.69368244]
[1645152710269,1.48914432,2906.6,2906.5,1.55404244]
[1645152710463,1.48625375,2906.6,2906.5,1.55404244]
[1645152711467,1.48625375,2906.6,2906.5,0.69368244]
[1645152713503,1.48625375,2906.6,2906.5,1.55409244]
[1645152718662,1.48652626,2906.6,2906.5,1.55409244]
[1645152718865,0.72532328,2906.6,2906.5,1.55409244]
[1645152719263,1.48657147,2906.6,2906.5,1.55409244]
[1645152719562,1.48657249,2906.6,2906.5,1.55409244]
[1645152719762,1.48661751,2906.6,2906.5,1.55409244]
[1645152720011,0.72532328,2906.6,2906.5,1.55409244]
[1645152720211,1.48660653,2906.6,2906.5,1.55409244]
[1645152720412,0.72532328,2906.6,2906.5,1.55409244]
[1645152720813,1.48652912,2906.6,2906.5,1.55409244]
[1645152721015,0.72532328,2906.6,2906.5,1.55409244]
[1645152722921,0.72532328,2906.6,2906.5,2.21229871]
[1645152728804,1.48651039,2906.6,2906.5,1.55409244]
[1645152731577,0.72532328,2906.6,2906.5,1.55409244]
[1645152731977,1.48613396,2906.6,2906.5,1.55409244]
[1645152733582,1.49167308,2906.6,2906.5,1.55409244]
[1645152738111,1.49167308,2906.6,2906.5,2.21229871]
[1645152740152,1.49167308,2906.6,2906.5,1.55409244]
[1645152741052,0.72403394,2906.6,2906.5,1.55409244]
[1645152741656,1.49196898,2906.6,2906.5,1.55409244]
[1645152741858,1.49197541,2906.6,2906.5,1.55409244]
[1645152742058,0.72403394,2906.6,2906.5,1.55409244]
[1645152742259,1.4920417,2906.6,2906.5,1.55409244]
[1645152742504,0.72403394,2906.6,2906.5,1.55409244]
[1645152742706,1.49206044,2906.6,2906.5,1.55409244]
[1645152743004,1.49205446,2906.6,2906.5,1.55409244]
[1645152743204,0.72403394,2906.6,2906.5,1.55409244]
[1645152743404,1.49205353,2906.6,2906.5,1.55409244]
[1645152743604,1.49204741,2906.6,2906.5,1.55409244]
[1645152743809,1.49199463,2906.6,2906.5,1.55409244]
[1645152744005,0.72403394,2906.6,2906.5,1.55409244]
[1645152744705,0.72403394,2906.6,2906.5,2.21229871]
[1645152744906,0.72403394,2906.6,2906.5,0.69368244]
[1645152744907,1.49195504,2906.6,2906.5,0.69368244]
[1645152745306,1.49195504,2906.6,2906.0,1.35188871]
[1645152745506,1.6285311,2906.5,2906.1,0.69339556]
[1645152745705,0.7679211,2906.4,2906.1,0.69339556]
[1645152745904,3.61456569,2906.4,2906.2,0.69339556]
[1645152746105,0.7679211,2906.3,2905.9,0.65820627]
[1645152746360,0.7679211,2906.2,2905.9,0.65820627]
[1645152746559,1.6285311,2906.1,2905.9,0.65820627]
[1645152746757,0.86061,2906.1,2905.9,0.65820627]
[1645152746956,0.86061,2906.1,2906.0,0.69491363]
[1645152747158,1.62761531,2906.1,2906.0,0.69491363]
[1645152747758,0.86061,2906.1,2906.0,0.69491363]
[1645152750205,0.00315004,2906.2,2906.1,0.86039]
[1645152750412,0.00315004,2906.2,2906.1,1.55530363]
[1645152751206,0.76636919,2906.5,2906.1,2.2135099]
[1645152751207,0.86043,2906.4,2906.1,2.2135099]
[1645152751410,0.86043,2906.4,2906.2,0.69491363]
[1645152751411,0.00314997,2906.3,2906.2,0.69491363]
[1645152751613,0.00314997,2906.3,2906.2,1.55533363]
[1645152752411,0.76633611,2906.6,2906.2,1.55533363]
[1645152752612,0.00308327,2906.4,2906.3,0.69491363]
[1645152753611,1.72098,2906.5,2906.3,0.69491363]
[1645152753852,1.7240632,2906.5,2906.4,0.69491363]
[1645152754051,2.49047356,2906.5,2906.4,0.69491363]
[1645152754952,2.48739036,2906.5,2906.4,0.69491363]
[1645152755553,3.61604302,2906.5,2906.4,0.69491363]
[1645152755754,1.62690036,2906.5,2906.4,0.69491363]
[1645152764857,1.62697066,2906.5,2906.4,0.69491363]
[1645152765103,0.86049,2906.5,2906.4,0.69491363]
[1645152765804,1.62694959,2906.5,2906.4,0.69491363]
[1645152766002,0.86049,2906.5,2906.4,0.69491363]
[1645152766204,1.62694385,2906.5,2906.4,0.69491363]
[1645152766409,1.62684491,2906.5,2906.4,0.69491363]
[1645152766613,0.86049,2906.5,2906.4,0.69491363]
[1645152766813,2.58642219,2906.8,2906.2,0.65820627]
[1645152766814,0.00497219,2906.8,2906.2,0.65820627]
[1645152767013,0.00497219,2906.8,2906.5,0.86018]
[1645152767215,0.00497219,2906.8,2906.6,0.65934003]
[1645152767609,0.00497219,2906.8,2906.7,0.65934003]
[1645152768011,0.00497219,2906.8,2906.6,1.3175463]
[1645152768212,0.00497219,2906.8,2906.7,0.65934003]
[1645152768510,0.00497219,2906.8,2906.7,1.51837627]
[1645152768752,0.00497219,2906.8,2906.7,1.51951003]
[1645152769153,0.00497219,2906.8,2906.7,2.54871279]
[1645152769959,0.00497219,2906.8,2906.7,3.20634606]
[1645152770159,0.00497219,2906.8,2906.7,2.54871279]
[1645152772600,0.00497219,2906.8,2906.7,3.20604065]
[1645152772803,0.00497219,2906.8,2906.7,4.50604065]
[1645152774304,0.00497219,2906.8,2906.7,3.84871279]
[1645152777758,0.00497219,2906.8,2906.7,3.54871279]
[1645152777956,0.00497219,2906.8,2906.7,4.70031725]
[1645152778157,0.00497219,2906.8,2906.7,4.04371279]
[1645152778958,0.00497219,2906.8,2906.7,4.70029611]
[1645152779258,0.00497219,2906.8,2906.7,4.04371279]
[1645152781204,0.00497219,2906.8,2906.7,4.70002716]
[1645152783205,0.00497219,2906.8,2906.7,4.04371279]
[1645152783606,0.00497219,2906.8,2906.7,4.70002716]
[1645152786862,0.31571656,2907.4,2907.2,1.94019075]
[1645152787263,0.31571656,2907.4,2907.3,0.65934003]
[1645152787501,0.86011,2907.5,2907.3,0.65934003]
[1645152787702,1.72025,2907.6,2907.4,0.65934003]
[1645152787903,1.72025,2907.6,2907.5,0.65934003]
[1645152790312,0.00307493,2907.7,2907.5,0.65934003]
[1645152790502,0.00307493,2907.7,2907.6,1.51941003]
[1645152790902,0.86008,2907.8,2907.6,1.51941003]
[1645152791103,0.86315487,2907.8,2907.6,0.86007]
[1645152792164,1.72014,2907.9,2907.7,1.48751958]
[1645152792364,0.8260645,2907.8,2907.7,0.86003]
[1645152792565,0.8260645,2907.8,2907.7,1.48745917]
[1645152792767,0.8260645,2907.8,2907.7,2.60475048]
[1645152792964,0.0030652,2907.8,2907.7,2.60475048]
[1645152793370,0.5,2908.1,2907.7,2.60475048]
[1645152793563,0.00306517,2907.9,2907.8,0.62742917]
[1645152793765,0.00306517,2907.9,2907.8,1.48734917]
[1645152794663,0.5,2908.1,2907.8,1.48734917]
[1645152794862,0.5,2908.1,2907.9,0.62742917]
[1645152794863,0.00306511,2908.0,2907.9,0.62742917]
[1645152795102,0.00306511,2908.0,2907.9,1.48735917]
[1645152795303,0.86298511,2908.0,2907.9,1.48735917]
[1645152795707,0.85992,2908.0,2907.9,1.48735917]
[1645152801955,0.86486733,2908.0,2907.9,1.48735917]
[1645152804014,0.00494733,2908.0,2907.9,1.48735917]
[1645152804313,0.00327602,2908.1,2907.9,1.48735917]
[1645152804314,0.00494733,2908.1,2907.9,1.48735917]
[1645152804511,0.00327602,2908.1,2908.0,0.62742917]
[1645152804712,0.00327602,2908.1,2908.0,1.48723917]
[1645152804912,0.00327602,2908.1,2908.0,2.48723917]
[1645152805313,0.00494733,2909.1,2908.0,2.48723917]
[1645152805511,0.00327595,2908.2,2908.0,3.34697917]
[1645152805711,0.00327595,2908.2,2908.1,0.62742917]
[1645152806115,0.00327595,2908.2,2908.1,1.48717917]
[1645152806362,0.00327595,2908.2,2908.1,2.48717917]
[1645152806561,0.00494733,2908.8,2908.1,2.48717917]
[1645152806860,0.00327589,2908.3,2908.2,1.48704917]
[1645152807064,0.00213115,2908.7,2908.3,2.0]
[1645152807266,0.00213115,2908.7,2908.5,0.85966]
[1645152807463,0.00213115,2908.7,2908.6,0.62742917]
[1645152807662,0.86464733,2908.9,2908.6,1.57123316]
[1645152807859,0.8597,2908.9,2908.7,0.62742917]
[1645152808065,0.86464733,2908.9,2908.7,0.62742917]
[1645152808461,0.86464733,2908.9,2908.7,1.48714917]
[1645152808661,0.86464733,2908.9,2908.7,0.85972]
[1645152809261,0.86601531,2908.9,2908.7,0.85972]
[1645152809660,0.86601531,2908.9,2908.7,1.91840566]
[1645152809860,1.58546531,2909.0,2908.7,1.91840566]
[1645152810709,1.58546531,2909.0,2908.2,1.0]
[1645152810710,1.67609909,2908.9,2908.2,1.0]
[1645152810912,0.8597,2908.9,2908.4,1.0]
[1645152811110,0.8597,2908.9,2908.5,0.63269587]
[1645152811314,0.8597,2908.9,2908.6,0.63269587]
[1645152811522,1.11662326,2908.8,2908.5,0.00191125]
[1645152811713,1.11662326,2908.8,2908.6,0.85981]
[1645152811714,1.71974,2908.7,2908.6,0.85981]
[1645152811913,1.15987,2908.8,2908.6,0.85981]
[1645152811914,0.3,2908.8,2908.6,0.85981]
[1645152812114,0.3,2908.8,2908.6,0.75981]
[1645152812716,0.3,2908.8,2908.6,0.76172122]
[1645152813617,0.3,2908.8,2908.6,0.75981]
[1645152814062,0.3,2908.8,2908.6,0.76308586]
[1645152814858,0.3,2908.8,2908.6,0.75981]
[1645152815059,0.3,2908.8,2908.6,0.76308586]
[1645152816056,0.85962,2909.0,2908.6,0.75981]
[1645152816257,0.81713213,2908.9,2908.6,0.75981]
[1645152816460,0.0032753,2909.0,2908.8,0.85965]
[1645152817061,1.67993568,2909.0,2908.8,0.85965]
[1645152817262,0.85963,2909.0,2908.8,0.85965]
[1645152817709,0.8629054,2909.0,2908.8,0.85965]
[1645152818409,0.85963,2909.0,2908.8,0.85965]
[1645152818811,0.8627033,2909.0,2908.8,0.85965]
[1645152819608,0.85963,2909.0,2908.8,0.85965]
[1645152820009,0.8627033,2909.0,2908.8,0.85965]
[1645152820913,0.85963,2909.0,2908.8,0.85965]
[1645152821113,0.8627033,2909.0,2908.8,0.85965]
[1645152822159,0.85963,2909.0,2908.8,0.85965]
[1645152822361,0.8627033,2909.0,2908.8,0.85965]
[1645152823259,0.85963,2909.0,2908.8,0.85965]
[1645152823463,5.74045081,2909.5,2908.8,0.85965]
[1645152823464,0.52107081,2909.5,2908.8,0.85965]
[1645152823664,0.00308835,2909.0,2908.8,1.85965]
[1645152823861,0.00308835,2909.0,2908.9,1.49161096]
[1645152824466,0.81662159,2909.5,2908.9,1.49161096]
[1645152824660,0.85954,2909.4,2909.0,0.63209096]
[1645152824861,0.00308832,2909.1,2909.0,0.63209096]
[1645152825104,0.00308832,2909.1,2909.0,2.35113096]
[1645152825507,0.00308832,2909.1,2909.0,3.35113096]
[1645152825708,0.00492259,2909.3,2909.0,3.35113096]
[1645152825904,0.00492259,2909.3,2909.1,0.63209096]
[1645152826104,0.00308825,2909.2,2909.1,0.63209096]
[1645152827014,0.00492259,2909.3,2909.2,0.00268469]
[1645152827211,0.00800944,2909.3,2909.2,0.86220469]
[1645152828010,0.00492259,2909.3,2909.2,0.86220469]
[1645152831679,0.00492259,2909.3,2908.3,1.51593437]
[1645152831680,0.85967,2909.1,2908.0,1.7193]
[1645152831879,0.85967,2909.1,2907.6,0.8067]
[1645152831880,0.01246314,2908.7,2907.6,0.8067]
[1645152832079,6.0,2908.6,2907.7,0.62039912]
[1645152832283,1.72042,2908.4,2907.6,0.8067]
[1645152832508,4.33334611,2908.3,2907.6,0.8067]
[1645152832707,3.40915352,2908.2,2907.6,0.8067]
[1645152832908,0.86025,2907.9,2907.6,0.8067]
[1645152833109,0.82842352,2907.8,2907.6,0.8067]
[1645152833310,1.12842352,2907.8,2907.6,0.8067]
[1645152833507,0.82842352,2907.7,2907.6,0.8067]
[1645152833708,0.3,2907.5,2906.8,4.26134974]
[1645152833907,0.3,2907.5,2906.9,0.61098445]
[1645152834107,5.52066,2907.5,2906.9,0.61098445]
[1645152834310,5.52066,2907.5,2907.0,0.00298663]
[1645152834515,2.02066,2907.5,2907.0,0.00298663]
[1645152834911,2.02066,2907.5,2907.0,0.61397108]
[1645152835109,0.86026,2907.4,2907.1,0.61098445]
[1645152835310,0.86026,2907.4,2907.2,0.61098445]
[1645152835311,0.3,2907.3,2907.2,0.61098445]
[1645152835510,0.3,2907.3,2907.1,0.00298657]
[1645152835908,0.3,2907.3,2907.1,0.61397102]
[1645152836111,0.3,2907.3,2907.2,0.61098445]
[1645152836358,1.16022,2907.3,2907.1,0.00298657]
[1645152836559,0.86023,2907.2,2906.9,0.61098445]
[1645152836760,0.86023,2907.2,2907.1,0.00298657]
[1645152837762,1.7204,2907.2,2906.9,0.61098445]
[1645152837960,1.72038,2907.1,2907.0,0.00289632]
[1645152838960,1.72038,2907.1,2906.9,0.61098445]
[1645152839162,1.72038,2907.1,2906.9,0.61388083]
[1645152839563,1.72038,2907.1,2906.9,0.00289638]
[1645152839564,2.58085,2907.1,2906.9,0.00289638]
[1645152839762,2.88085,2907.1,2906.9,0.00289638]
[1645152840004,2.88085,2907.1,2906.4,0.61002957]
[1645152840209,2.88085,2907.1,2906.5,0.61002957]
[1645152840210,2.58161,2906.9,2906.5,0.61002957]
[1645152840406,3.59051484,2906.9,2906.1,1.58838621]
[1645152840607,3.59051484,2906.9,2906.2,0.61002957]
[1645152840904,0.86054,2906.8,2906.2,0.61002957]
[1645152841112,0.86053,2907.0,2906.2,0.61002957]
[1645152841313,1.72033,2907.2,2906.2,1.43671008]
[1645152841510,1.72033,2907.2,2906.3,0.61002957]
[1645152841708,1.72033,2907.2,2906.4,0.00289375]
[1645152841709,0.8602,2907.2,2906.4,0.00289375]
[1645152842108,0.8602,2907.2,2906.4,0.61292332]
[1645152842510,0.8602,2907.2,2906.4,0.61002957]
[1645152842713,0.86016,2907.0,2906.7,0.00289357]
[1645152842909,1.7205,2907.0,2906.7,0.00289357]
[1645152843312,1.7205,2907.0,2906.7,0.61292314]
[1645152843509,1.7205,2907.0,2906.8,0.61002957]
[1645152843755,1.7205,2907.0,2906.9,0.61002957]
[1645152843958,0.86034,2907.0,2906.7,0.00289355]
[1645152844157,1.72061,2907.0,2906.7,0.00289355]
[1645152844957,1.72061,2907.0,2906.1,1.15025664]
[1645152844958,1.72061,2907.0,2906.5,0.61002957]
[1645152845159,0.86037,2906.7,2906.6,0.61002957]
[1645152845362,0.86037,2906.7,2906.2,0.61002957]
[1645152845559,1.72073,2906.7,2906.2,0.61002957]
[1645152846161,1.72073,2906.7,2906.2,1.47031957]
[1645152846162,0.86036,2906.7,2906.2,1.47031957]
[1645152846364,0.86036,2906.7,2906.3,0.61292347]
[1645152846567,0.86036,2906.7,2906.4,0.61002957]
[1645152847164,1.01715407,2906.8,2906.4,0.61002957]
[1645152847609,1.01715407,2906.8,2906.5,0.61002957]
[1645152847808,0.86035,2906.7,2906.6,0.61002957]
[1645152848210,1.72071,2906.7,2906.6,0.61002957]
[1645152849914,0.86035,2906.7,2906.6,0.61002957]
[1645152852572,0.86035,2906.7,2906.5,0.00289381]
[1645152853368,1.7208,2906.7,2906.2,0.57908021]
[1645152853568,1.7208,2906.7,2906.5,0.00289384]
[1645152853767,0.86044,2906.6,2906.5,0.00289384]
[1645152854669,0.8604,2906.5,2906.2,0.57908021]
[1645152854867,1.72082,2906.5,2906.4,0.00289387]
[1645152855720,1.72082,2906.5,2906.2,0.57908021]
[1645152855919,0.86038,2906.4,2906.2,0.57908021]
[1645152856117,0.86038,2906.4,2906.3,0.0028939]
[1645152856922,0.86038,2906.4,2906.2,0.57908021]
[1645152857123,1.7208,2906.4,2906.2,0.57908021]
[1645152857322,1.7208,2906.4,2906.2,0.58197417]
[1645152857724,0.86038,2906.4,2906.2,1.44235417]
[1645152857924,0.86038,2906.4,2906.3,0.57908021]
[1645152860164,0.86033,2906.5,2906.4,0.86033]
[1645152860365,0.86033,2906.5,2906.4,1.43941021]
[1645152861167,0.86033,2906.5,2906.4,0.57908021]
[1645152861966,0.86041,2906.5,2906.3,0.00289391]
[1645152862166,2.58125,2906.5,2906.3,0.00289391]
[1645152862611,2.58125,2906.5,2906.3,0.58197412]
[1645152862813,2.58125,2906.5,2906.4,0.57908021]
[1645152863011,2.58125,2906.5,2906.2,0.57908021]
[1645152863213,2.58125,2906.5,2906.3,0.00289394]
[1645152864215,2.58125,2906.5,2906.2,0.57908021]
[1645152864515,2.58125,2906.5,2906.3,0.00289394]
[1645152865315,2.58125,2906.5,2906.2,0.57908021]
[1645152865518,2.58125,2906.5,2906.3,0.57908021]
[1645152865717,2.58125,2906.5,2906.4,0.57908021]
[1645152866760,1.72071,2906.7,2906.4,0.57908021]
[1645152866960,1.72071,2906.7,2906.4,1.45021806]
[1645152866961,0.86038,2906.7,2906.4,1.45021806]
[1645152867164,1.01696452,2906.8,2906.5,0.57908021]
[1645152867764,0.86038,2906.7,2906.5,0.57908021]
[1645152867961,0.86038,2906.7,2906.5,0.5819763]
[1645152868363,1.72069,2906.7,2906.5,0.5819763]
[1645152868870,1.72069,2906.7,2906.5,0.57908021]
[1645152869163,1.72069,2906.7,2906.5,0.58197633]
[1645152869764,1.72069,2906.7,2906.5,1.44229633]
[1645152870026,0.86031,2906.7,2906.6,0.57908021]
[1645152871735,0.86031,2906.7,2906.6,0.59105652]
[1645152872838,1.01696452,2906.8,2906.6,0.59105652]
[1645152873041,0.86028,2906.8,2906.7,0.57908021]
[1645152873239,1.72055,2907.1,2906.7,0.57908021]
[1645152873440,0.89631943,2907.0,2906.6,0.01197631]
[1645152873640,0.86048,2906.8,2906.6,0.01197631]
[1645152873858,3.5,2906.7,2906.6,0.01197631]
[1645152874063,3.5,2906.7,2906.6,0.56425271]
[1645152874064,3.8,2906.7,2906.6,0.56425271]
[1645152874658,0.3,2906.7,2906.6,0.56425271]
[1645152875060,1.78499629,2906.8,2906.6,0.56425271]
[1645152875261,1.78499629,2906.8,2906.7,0.55287481]
[1645152875464,1.82337765,2906.8,2906.7,0.55287481]
[1645152876064,0.92451629,2906.8,2906.7,0.55287481]
[1645152876466,1.82583264,2906.8,2906.7,0.55287481]
[1645152876870,1.82583264,2906.8,2906.7,0.56483492]
[1645152877517,0.90131635,2906.8,2906.7,0.56483492]
[1645152881373,0.81023,2907.0,2906.7,1.21961543]
[1645152881772,0.90219284,2906.9,2906.8,0.55287481]
[1645152882169,0.90219847,2906.9,2906.8,0.55287481]
[1645152882368,0.81023,2907.0,2906.8,1.20765532]
[1645152882669,1.72045,2907.2,2906.8,1.20765532]
[1645152882670,0.86019,2907.1,2906.8,1.20765532]
[1645152882866,1.72033,2907.5,2906.8,1.20765532]
[1645152883065,0.90237788,2907.4,2906.9,1.20765532]
[1645152883265,0.90237788,2907.4,2907.0,0.55287481]
[1645152883464,0.90237788,2907.4,2906.9,0.65478051]
[1645152883465,0.90237788,2907.4,2907.1,0.55287481]
[1645152883667,0.90237788,2907.4,2907.2,0.55287481]
[1645152883866,0.90237788,2907.4,2907.3,0.55287481]
[1645152884069,0.90237788,2907.4,2907.0,0.00288408]
[1645152884270,0.86017,2907.3,2907.0,0.00288408]
[1645152884467,0.86017,2907.3,2906.9,0.65478051]
[1645152884468,0.90237788,2907.2,2906.9,0.65478051]
[1645152884668,0.90237788,2907.2,2907.0,0.86015]
[1645152884869,0.90237788,2907.2,2906.9,0.65478051]
[1645152884870,1.72033,2907.5,2907.1,0.55577249]
[1645152885110,0.90237333,2907.4,2907.2,0.55287481]
[1645152885315,0.90237333,2907.4,2907.3,0.55287481]
[1645152885514,0.90237333,2907.4,2907.1,0.00289768]
[1645152885712,0.90237333,2907.4,2907.0,1.679762]
[1645152885913,0.90237333,2907.4,2907.1,0.55287481]
[1645152886116,1.76254333,2907.4,2907.2,0.86016]
[1645152886318,0.90237333,2907.3,2907.0,3.5019477]
[1645152886520,0.90237333,2907.3,2907.1,0.55512903]
[1645152886718,0.90237333,2907.3,2907.1,0.56706795]
[1645152886922,0.90237333,2907.3,2907.2,0.55512903]
[1645152887121,4.70237333,2907.3,2907.2,0.55512903]
[1645152887320,5.56259333,2907.3,2907.2,0.55521873]
[1645152887617,5.56259333,2907.3,2907.2,0.55522296]
[1645152887818,5.56259333,2907.3,2907.1,0.01193892]
[1645152888018,3.5,2907.2,2907.1,0.01193892]
[1645152888219,4.40237333,2907.2,2907.1,0.01193892]
[1645152888418,4.40237333,2907.2,2907.1,0.01514065]
[1645152888620,4.40237333,2907.2,2907.1,0.570289]
[1645152888858,4.40237333,2907.2,2907.1,0.57025632]
[1645152888859,0.90237333,2907.2,2907.1,0.57025632]
[1645152889060,0.90237333,2907.2,2907.1,0.01514065]
[1645152889259,0.90237333,2907.2,2907.1,0.57028029]
[1645152889464,0.90237333,2907.2,2907.1,0.01193892]
[1645152889859,0.90237333,2907.2,2907.1,0.56707675]
[1645152890065,0.90237333,2907.2,2907.1,0.01193892]
[1645152890262,0.90237333,2907.2,2907.1,0.56706277]
[1645152891063,0.86022,2907.3,2907.1,0.56706277]
[1645152891263,0.86022,2907.3,2907.2,0.55512385]
[1645152891467,1.76285863,2907.3,2907.2,0.55512385]
[1645152892272,2.06285863,2907.3,2907.1,0.02691342]
[1645152892509,0.90263863,2907.2,2907.1,0.02691342]
[1645152892913,0.90263863,2907.2,2907.1,0.57894674]
[1645152895111,1.16022,2907.3,2907.1,0.57894674]
[1645152895311,1.16022,2907.3,2907.2,0.55511251]
[1645152895511,2.0674964,2907.3,2907.2,0.55511251]
[1645152896964,1.7674964,2907.3,2907.2,0.55511251]
[1645152900211,0.86022,2907.3,2907.2,0.55511251]
[1645152900812,1.76756596,2907.3,2907.2,0.55511251]
[1645152901011,1.76764416,2907.3,2907.2,0.55511251]
[1645152901214,0.86022,2907.3,2907.2,0.55511251]
[1645152901415,1.76761704,2907.3,2907.2,0.55511251]
[1645152901615,0.86022,2907.3,2907.2,0.56847651]
[1645152901817,1.76756419,2907.3,2907.2,0.56847651]
[1645152902819,1.76608238,2907.3,2907.2,0.56847651]
[1645152903220,0.85873819,2907.3,2907.2,0.56847651]
[1645152903419,1.75743367,2907.3,2907.2,0.56847651]
[1645152903619,0.85873819,2907.3,2907.2,0.56847651]
[1645152904062,1.75740492,2907.3,2907.2,0.56847651]
[1645152904265,0.85873819,2907.3,2907.2,0.56847651]
[1645152904463,1.7573728,2907.3,2907.2,0.56847651]
[1645152904662,0.85873819,2907.3,2907.2,0.56847651]
[1645152904863,1.75734291,2907.3,2907.2,0.56847651]
[1645152905068,1.75732466,2907.3,2907.2,0.56847651]
[1645152905264,0.85873819,2907.3,2907.2,0.56847651]
[1645152905463,1.75726253,2907.3,2907.2,0.56847651]
[1645152905666,0.85873819,2907.3,2907.2,0.56847651]
[1645152905863,1.7571803,2907.3,2907.2,0.56847651]
[1645152906063,1.75717196,2907.3,2907.2,0.56847651]
[1645152906263,0.85873819,2907.3,2907.2,0.56847651]
[1645152906467,1.75712957,2907.3,2907.2,0.56847651]
[1645152906771,1.75708919,2907.3,2907.2,0.56847651]
[1645152906971,1.75705923,2907.3,2907.2,0.56847651]
[1645152908017,2.61739923,2907.3,2907.2,0.56847651]
[1645152908216,1.75705923,2907.3,2907.2,0.56847651]
[1645152909219,1.75706628,2907.3,2907.2,0.56847651]
[1645152910022,0.85873819,2907.3,2907.2,0.56847651]
[1645152910420,1.75693956,2907.3,2907.2,0.56847651]
[1645152911022,1.75691115,2907.3,2907.2,0.56847651]
[1645152912094,1.75698477,2907.3,2907.2,0.56847651]
[1645152912291,0.85873819,2907.3,2907.2,0.56847651]
[1645152912592,1.75708958,2907.3,2907.2,0.56847651]
[1645152912792,0.85873819,2907.3,2907.2,0.56847651]
[1645152912988,1.75702088,2907.3,2907.2,0.56847651]
[1645152913187,0.85873819,2907.3,2907.2,0.56847651]
[1645152913390,1.75703168,2907.3,2907.2,0.56847651]
[1645152913586,1.75707477,2907.3,2907.2,0.56847651]
[1645152913788,0.85873819,2907.3,2907.2,0.56847651]
[1645152913988,1.75702254,2907.3,2907.2,0.56847651]
[1645152915319,1.75702254,2907.3,2907.2,0.57221948]
[1645152915612,1.75702254,2907.3,2907.2,0.57222598]
[1645152915912,1.75702254,2907.3,2907.2,0.013364]
[1645152916112,1.75702254,2907.3,2907.2,0.57219711]
[1645152916316,1.75702254,2907.3,2907.2,0.57219976]
[1645152916919,1.75702254,2907.3,2907.2,0.013364]
[1645152917116,5.25702254,2907.3,2907.2,0.57221253]
[1645152917319,5.25702254,2907.3,2906.6,0.65478051]
[1645152917320,0.70415444,2907.1,2906.6,0.65478051]
[1645152917517,0.70415444,2907.1,2906.5,1.1526]
[1645152917518,5.22102,2907.0,2906.5,1.80738051]
[1645152917718,5.22102,2907.0,2906.3,0.65478051]
[1645152918320,1.16965418,2906.5,2906.3,0.65478051]
[1645152918518,3.5,2906.4,2906.2,0.65839795]
[1645152918766,3.5,2906.4,2906.2,0.00361744]
[1645152918966,4.4423,2906.4,2906.2,0.00361744]
[1645152919163,4.4423,2906.4,2905.9,0.65478051]
[1645152919164,3.5,2906.3,2905.9,0.65478051]
[1645152919361,3.5,2906.3,2906.0,0.00361744]
[1645152919564,0.86071,2906.2,2905.7,0.65839795]
[1645152919768,0.86071,2906.2,2905.8,0.00361744]
[1645152920962,0.86071,2906.2,2905.9,0.00306363]
[1645152921368,0.8607,2906.1,2905.9,0.00306363]
[1645152921771,0.8607,2906.1,2905.8,0.00361744]
[1645152922169,0.8607,2906.1,2905.9,0.00306363]
[1645152922915,1.72137,2906.1,2905.9,0.00306363]
[1645152923119,0.86064,2906.0,2905.8,0.00361744]
[1645152923314,1.72137,2906.1,2905.9,0.00306962]
[1645152925422,1.72137,2906.1,2905.8,0.00361744]
[1645152925627,1.62137,2906.1,2905.9,0.00306962]
[1645152926665,1.62137,2906.1,2905.6,0.00361744]
[1645152926865,0.86064,2906.0,2905.9,0.00306922]
[1645152927070,1.62137,2906.1,2905.9,0.00306922]
[1645152927872,4.36069,2906.0,2905.6,0.00361744]
[1645152928069,4.36069,2906.0,2905.9,0.00306922]
[1645152928270,3.5,2906.0,2905.9,0.00306922]
[1645152929072,0.86093,2905.9,2905.3,0.00361744]
[1645152929368,0.86093,2905.9,2905.1,0.00361744]
[1645152929369,1.161,2905.7,2905.1,0.00361744]
[1645152929568,3.5,2905.6,2905.2,0.00361744]
[1645152930012,0.94069074,2905.3,2905.2,0.00361744]
[1645152931018,1.24069074,2905.3,2905.2,0.00361744]
[1645152933861,0.3,2905.3,2905.2,0.00361744]
[1645152934259,0.3,2905.4,2905.2,0.00361744]
[1645152934860,0.86092,2905.5,2905.2,0.00361744]
[1645152934861,2.04159281,2905.5,2905.2,0.00361744]
[1645152935062,0.86092,2905.5,2905.2,0.00361744]
[1645152935263,0.86067,2905.6,2905.2,0.00668711]
[1645152936261,0.86067,2905.6,2905.2,0.00361744]
[1645152936467,0.86067,2905.6,2905.3,0.00306961]
[1645152936867,0.86063,2905.7,2905.3,0.00306961]
[1645152937511,0.44786344,2905.9,2905.3,0.52924305]
[1645152937711,0.44786344,2905.9,2905.4,0.52869517]
[1645152937712,0.3,2905.9,2905.4,0.52869517]
[1645152937913,2.76645598,2905.7,2905.5,0.52924305]
[1645152938119,2.76645598,2905.7,2905.6,0.00361744]
[1645152938313,3.06645598,2905.7,2905.5,0.4965649]
[1645152938514,3.06645598,2905.7,2905.5,0.00361744]
[1645152938718,3.06645598,2905.7,2905.5,0.4965649]
[1645152938915,3.92729598,2905.7,2905.5,0.00306947]
[1645152939114,3.92729598,2905.7,2905.5,0.4995871]
[1645152939115,2.76645598,2905.7,2905.5,0.4995871]
[1645152939317,2.76645598,2905.7,2905.5,0.00668691]
[1645152939514,2.76645598,2905.7,2905.5,0.00306947]
[1645152939914,2.76645598,2905.7,2905.2,0.49644742]
[1645152939915,2.76645598,2905.7,2905.3,0.00361744]
[1645152940114,1.7214,2905.7,2905.5,0.0030695]
[1645152940515,1.7214,2905.7,2905.5,0.00668694]
[1645152940913,1.7214,2905.7,2905.5,0.0030695]
[1645152941114,1.7214,2905.7,2905.2,0.49636622]
[1645152941369,1.7214,2905.7,2905.0,0.11606]
[1645152941370,0.86069,2905.6,2905.5,0.00306948]
[1645152941569,0.86063,2905.7,2905.5,0.4994357]
[1645152941767,0.86063,2905.7,2905.6,0.49636622]
[1645152942166,0.86063,2905.7,2905.3,1.11274845]
[1645152942368,0.86063,2905.7,2905.4,0.49998366]
[1645152942568,0.86063,2905.7,2905.5,0.00306945]
[1645152942771,0.86063,2905.7,2905.5,0.49943567]
[1645152943369,1.16063,2905.7,2905.5,0.49943567]
[1645152943571,1.16063,2905.7,2905.5,0.49636622]
[1645152943769,1.16063,2905.7,2905.5,0.00306948]
[1645152943770,1.72172,2905.6,2905.5,0.00306948]
[1645152943976,0.86086,2905.6,2905.5,0.00306948]
[1645152944172,4.36086,2905.6,2905.5,0.00306948]
[1645152944573,4.36086,2905.6,2905.2,0.00361744]
[1645152944872,5.22183,2905.6,2905.2,0.00361744]
[1645152945117,1.16098,2905.5,2905.4,0.00306951]
[1645152945313,4.66098,2905.5,2905.4,0.00306951]
[1645152945914,4.66098,2905.5,2905.2,0.00361744]
[1645152946115,6.383,2905.5,2905.3,0.00306957]